[Event "*** SCC Grand Prix: Titled Tuesday Blitz"]
[Site "Chess.com"]
[Date "2020.06.09"]
[Round "5"]
[White "Anna_ChessMate"]
[Black "queen_iryna"]
[Result "1-0"]
[WhiteElo "2518"]
[BlackElo "2325"]
[TimeControl "180+1"]
[EndTime "9:54:11 PDT"]
[Termination "Anna_ChessMate won by resignation"]

1. d4 {[%clk 0:03:00.9]} 1... d5 {[%clk 0:02:59.3]} 2. c4 {[%clk 0:02:59.3]}
2... c6 {[%clk 0:02:59.4]} 3. Nc3 {[%clk 0:02:55.3]} 3... Nf6 {[%clk 0:02:58.7]}
4. e3 {[%clk 0:02:55]} 4... e6 {[%clk 0:02:51.9]} 5. Nf3 {[%clk 0:02:54.8]} 5...
Nbd7 {[%clk 0:02:51.2]} 6. Bd3 {[%clk 0:02:52.8]} 6... dxc4 {[%clk 0:02:50.8]}
7. Bxc4 {[%clk 0:02:53.7]} 7... b5 {[%clk 0:02:51.3]} 8. Bd3 {[%clk 0:02:53.2]}
8... Bb7 {[%clk 0:02:51]} 9. Qc2 {[%clk 0:02:53.7]} 9... a6 {[%clk 0:02:44.1]}
10. e4 {[%clk 0:02:53.3]} 10... b4 {[%clk 0:02:39]} 11. Na4 {[%clk 0:02:50]}
11... c5 {[%clk 0:02:21.6]} 12. dxc5 {[%clk 0:02:46.3]} 12... Rc8 {[%clk
0:02:14.8]} 13. Be3 {[%clk 0:02:42.7]} 13... Ng4 {[%clk 0:02:04.2]} 14. Qd2
{[%clk 0:02:30.6]} 14... Nxe3 {[%clk 0:02:00]} 15. Qxe3 {[%clk 0:02:31.5]} 15...
Nxc5 {[%clk 0:01:59.8]} 16. Nxc5 {[%clk 0:02:29.9]} 16... Bxc5 {[%clk
0:02:00.7]} 17. Qe2 {[%clk 0:02:30.8]} 17... O-O {[%clk 0:01:54.9]} 18. O-O
{[%clk 0:02:30.1]} 18... Qb6 {[%clk 0:01:49.6]} 19. Ne5 {[%clk 0:02:28.1]} 19...
Bd4 {[%clk 0:01:39.5]} 20. Nd7 {[%clk 0:02:27.2]} 20... Qa7 {[%clk 0:01:27.8]}
21. Nxf8 {[%clk 0:02:25.7]} 21... Rxf8 {[%clk 0:01:28.7]} 22. Kh1 {[%clk
0:02:16.8]} 22... Rd8 {[%clk 0:01:25]} 23. Rad1 {[%clk 0:02:16.1]} 23... e5
{[%clk 0:01:24]} 24. Bc4 {[%clk 0:02:14]} 24... a5 {[%clk 0:01:19.8]} 25. b3
{[%clk 0:02:13.6]} 25... Bc8 {[%clk 0:01:17.4]} 26. f4 {[%clk 0:02:11.3]} 26...
Rf8 {[%clk 0:01:11.1]} 27. fxe5 {[%clk 0:02:09.9]} 27... Bxe5 {[%clk 0:01:12]}
28. Qh5 {[%clk 0:02:04.9]} 28... Bf6 {[%clk 0:00:44.5]} 29. e5 {[%clk
0:01:57.7]} 29... Be7 {[%clk 0:00:44.5]} 30. Rxf7 {[%clk 0:01:55.6]} 1-0

[Event "*** SCC Grand Prix: Titled Tuesday Blitz"]
[Site "Chess.com"]
[Date "2020.06.09"]
[Round "5"]
[White "Tsyhanchuk_Stanislav"]
[Black "Khazieva_Elza"]
[Result "1-0"]
[WhiteElo "2409"]
[BlackElo "2240"]
[TimeControl "180+1"]
[EndTime "9:54:28 PDT"]
[Termination "Tsyhanchuk_Stanislav won by checkmate"]

1. e4 {[%clk 0:03:00.9]} 1... c5 {[%clk 0:02:54]} 2. Nf3 {[%clk 0:03:00.5]} 2...
d6 {[%clk 0:02:54]} 3. d4 {[%clk 0:03:01.4]} 3... cxd4 {[%clk 0:02:54.9]} 4.
Nxd4 {[%clk 0:03:01.7]} 4... Nf6 {[%clk 0:02:55.4]} 5. Nc3 {[%clk 0:03:02.6]}
5... Nc6 {[%clk 0:02:55.5]} 6. Bg5 {[%clk 0:03:01.9]} 6... e6 {[%clk 0:02:55.2]}
7. Qd2 {[%clk 0:02:55.4]} 7... Be7 {[%clk 0:02:55.4]} 8. h4 {[%clk 0:02:54.8]}
8... h6 {[%clk 0:02:49.7]} 9. Bxf6 {[%clk 0:02:39.7]} 9... Bxf6 {[%clk
0:02:50.6]} 10. Nxc6 {[%clk 0:02:39.5]} 10... bxc6 {[%clk 0:02:51.4]} 11. O-O-O
{[%clk 0:02:34.1]} 11... d5 {[%clk 0:02:43.9]} 12. f4 {[%clk 0:02:32.7]} 12...
O-O {[%clk 0:02:20.6]} 13. g4 {[%clk 0:02:27.4]} 13... Bxh4 {[%clk 0:02:00.4]}
14. g5 {[%clk 0:02:25.2]} 14... hxg5 {[%clk 0:01:57.8]} 15. Kb1 {[%clk
0:02:20.3]} 15... gxf4 {[%clk 0:01:29.4]} 16. Qxf4 {[%clk 0:02:18.9]} 16... Bg5
{[%clk 0:01:25.3]} 17. Qh2 {[%clk 0:02:18.5]} 17... Bh6 {[%clk 0:01:25.2]} 18.
Bd3 {[%clk 0:02:18]} 18... d4 {[%clk 0:01:13.7]} 19. Rdg1 {[%clk 0:02:15.3]}
19... Qf6 {[%clk 0:00:50.7]} 20. Ne2 {[%clk 0:01:49.7]} 20... Kh8 {[%clk
0:00:44.8]} 21. e5 {[%clk 0:01:47.9]} 21... Qf3 {[%clk 0:00:15]} 22. Qxh6+
{[%clk 0:01:45.4]} 22... gxh6 {[%clk 0:00:13.4]} 23. Rxh6# {[%clk 0:01:46.3]}
1-0

[Event "*** SCC Grand Prix: Titled Tuesday Blitz"]
[Site "Chess.com"]
[Date "2020.06.09"]
[Round "5"]
[White "TomsKantans"]
[Black "Sychev_Klementy"]
[Result "0-1"]
[WhiteElo "2633"]
[BlackElo "2858"]
[TimeControl "180+1"]
[EndTime "9:54:38 PDT"]
[Termination "Sychev_Klementy won on time"]

1. e4 {[%clk 0:01:49.2]} 1... e5 {[%clk 0:02:58.3]} 2. Nf3 {[%clk 0:01:48.8]}
2... Nc6 {[%clk 0:02:58.5]} 3. Bb5 {[%clk 0:01:48.3]} 3... a6 {[%clk 0:02:58.4]}
4. Ba4 {[%clk 0:01:48.4]} 4... b5 {[%clk 0:02:58.3]} 5. Bb3 {[%clk 0:01:48.4]}
5... Na5 {[%clk 0:02:59]} 6. Nxe5 {[%clk 0:01:39.3]} 6... Nxb3 {[%clk
0:02:57.8]} 7. axb3 {[%clk 0:01:39.2]} 7... Qe7 {[%clk 0:02:58.5]} 8. d4 {[%clk
0:01:32.4]} 8... d6 {[%clk 0:02:58.2]} 9. Nf3 {[%clk 0:01:25.4]} 9... Qxe4+
{[%clk 0:02:57.9]} 10. Be3 {[%clk 0:01:25.4]} 10... Bf5 {[%clk 0:02:58.1]} 11.
c4 {[%clk 0:01:16.7]} 11... Qd3 {[%clk 0:02:56.9]} 12. Nfd2 {[%clk 0:00:57.5]}
12... Nf6 {[%clk 0:02:52.1]} 13. Nc3 {[%clk 0:00:56.9]} 13... bxc4 {[%clk
0:02:43.9]} 14. bxc4 {[%clk 0:00:54.4]} 14... Be7 {[%clk 0:02:34.8]} 15. Ra3
{[%clk 0:00:31.3]} 15... Bg4 {[%clk 0:02:12]} 16. Qa4+ {[%clk 0:00:25.6]} 16...
Bd7 {[%clk 0:02:10.6]} 17. Qa5 {[%clk 0:00:24.4]} 17... Qg6 {[%clk 0:01:54.8]}
18. g3 {[%clk 0:00:14]} 18... Bd8 {[%clk 0:01:49.2]} 19. O-O {[%clk 0:00:12.1]}
19... c5 {[%clk 0:01:41]} 0-1

[Event "*** SCC Grand Prix: Titled Tuesday Blitz"]
[Site "Chess.com"]
[Date "2020.06.09"]
[Round "5"]
[White "LionTheLeon_06"]
[Black "WinstonSilvakov"]
[Result "1-0"]
[WhiteElo "2692"]
[BlackElo "2119"]
[TimeControl "180+1"]
[EndTime "9:54:43 PDT"]
[Termination "LionTheLeon_06 won by resignation"]

1. Nf3 {[%clk 0:03:00.9]} 1... Nf6 {[%clk 0:02:59.4]} 2. g3 {[%clk 0:03:00.4]}
2... d6 {[%clk 0:02:59.5]} 3. Bg2 {[%clk 0:02:59.4]} 3... c5 {[%clk 0:02:57.6]}
4. O-O {[%clk 0:02:58]} 4... Nc6 {[%clk 0:02:57.3]} 5. c4 {[%clk 0:02:55.7]}
5... e6 {[%clk 0:02:54.1]} 6. d4 {[%clk 0:02:55]} 6... cxd4 {[%clk 0:02:52.8]}
7. Nxd4 {[%clk 0:02:52.5]} 7... Nxd4 {[%clk 0:02:47.9]} 8. Qxd4 {[%clk
0:02:52.1]} 8... Qc7 {[%clk 0:02:45.3]} 9. Nc3 {[%clk 0:02:51.5]} 9... a6 {[%clk
0:02:42.9]} 10. b3 {[%clk 0:02:45]} 10... Be7 {[%clk 0:02:38.3]} 11. Ba3 {[%clk
0:02:44]} 11... O-O {[%clk 0:02:28.4]} 12. Rfd1 {[%clk 0:02:43.6]} 12... Rd8
{[%clk 0:02:27.1]} 13. Rac1 {[%clk 0:02:39.2]} 13... Qa5 {[%clk 0:02:23.1]} 14.
Bb2 {[%clk 0:02:35.9]} 14... e5 {[%clk 0:02:18.6]} 15. Qd2 {[%clk 0:02:33.1]}
15... Qc7 {[%clk 0:02:04.7]} 16. Nd5 {[%clk 0:02:19.2]} 16... Nxd5 {[%clk
0:02:03.1]} 17. Bxd5 {[%clk 0:02:20.1]} 17... Bd7 {[%clk 0:01:50.6]} 18. e3
{[%clk 0:02:13.9]} 18... Bc6 {[%clk 0:01:50.2]} 19. Qe2 {[%clk 0:02:13.9]} 19...
Qd7 {[%clk 0:01:36.7]} 20. a4 {[%clk 0:02:03.6]} 20... Qf5 {[%clk 0:01:28.3]}
21. Ba3 {[%clk 0:01:58.8]} 21... Rac8 {[%clk 0:01:23.7]} 22. Rd2 {[%clk
0:01:51.8]} 22... h5 {[%clk 0:01:22.7]} 23. Rcd1 {[%clk 0:01:47.3]} 23... Bd7
{[%clk 0:01:03.7]} 24. Bg2 {[%clk 0:01:33.8]} 24... Bc6 {[%clk 0:00:49.9]} 25.
Bxd6 {[%clk 0:01:22.9]} 25... Bxd6 {[%clk 0:00:43.8]} 26. Rxd6 {[%clk
0:01:16.7]} 26... Bxg2 {[%clk 0:00:42.5]} 27. Rxd8+ {[%clk 0:01:14.9]} 1-0

[Event "*** SCC Grand Prix: Titled Tuesday Blitz"]
[Site "Chess.com"]
[Date "2020.06.09"]
[Round "5"]
[White "aleksandrovaleksei"]
[Black "Omk124"]
[Result "1-0"]
[WhiteElo "2595"]
[BlackElo "2424"]
[TimeControl "180+1"]
[EndTime "9:54:43 PDT"]
[Termination "aleksandrovaleksei won by resignation"]

1. d4 {[%clk 0:03:00.9]} 1... c5 {[%clk 0:02:59.1]} 2. d5 {[%clk 0:03:00.4]}
2... Nf6 {[%clk 0:02:59.4]} 3. c4 {[%clk 0:02:59.7]} 3... g6 {[%clk 0:02:58.8]}
4. Nc3 {[%clk 0:02:59.1]} 4... Bg7 {[%clk 0:02:58.8]} 5. e4 {[%clk 0:02:58.8]}
5... d6 {[%clk 0:02:59.2]} 6. h3 {[%clk 0:02:58.6]} 6... O-O {[%clk 0:02:59.4]}
7. Nf3 {[%clk 0:02:58.6]} 7... e6 {[%clk 0:02:58.1]} 8. Bd3 {[%clk 0:02:58]}
8... exd5 {[%clk 0:02:58.3]} 9. exd5 {[%clk 0:02:58.1]} 9... Re8+ {[%clk
0:02:46.7]} 10. Be3 {[%clk 0:02:57.3]} 10... Bh6 {[%clk 0:02:42.2]} 11. O-O
{[%clk 0:02:56.7]} 11... Bxe3 {[%clk 0:02:35.4]} 12. fxe3 {[%clk 0:02:56.1]}
12... Rxe3 {[%clk 0:02:36.3]} 13. Qd2 {[%clk 0:02:54.7]} 13... Re8 {[%clk
0:02:34.8]} 14. Qh6 {[%clk 0:02:29.5]} 14... Nbd7 {[%clk 0:02:14.6]} 15. Ng5
{[%clk 0:02:28.8]} 15... Re7 {[%clk 0:01:59.8]} 16. Nce4 {[%clk 0:02:24.9]}
16... Rxe4 {[%clk 0:00:48.5]} 17. Bxe4 {[%clk 0:02:21.1]} 17... Qe7 {[%clk
0:00:43.8]} 18. Rae1 {[%clk 0:02:12.1]} 18... Ne5 {[%clk 0:00:42.7]} 19. Bb1
{[%clk 0:02:06.3]} 19... Bd7 {[%clk 0:00:41.6]} 20. Re2 {[%clk 0:01:48.4]} 20...
Nf3+ {[%clk 0:00:35.2]} 21. Rxf3 {[%clk 0:01:43.5]} 21... Qxe2 {[%clk 0:00:35]}
22. Rxf6 {[%clk 0:01:37.4]} 22... Qe3+ {[%clk 0:00:33.3]} 23. Rf2 {[%clk
0:01:36.6]} 23... Qc1+ {[%clk 0:00:22.6]} 24. Rf1 {[%clk 0:01:35.2]} 24... Qe3+
{[%clk 0:00:22.7]} 25. Kh1 {[%clk 0:01:35.1]} 1-0

[Event "*** SCC Grand Prix: Titled Tuesday Blitz"]
[Site "Chess.com"]
[Date "2020.06.09"]
[Round "5"]
[White "Fh2411"]
[Black "VladimirBugayev"]
[Result "1-0"]
[WhiteElo "2428"]
[BlackElo "2260"]
[TimeControl "180+1"]
[EndTime "9:54:51 PDT"]
[Termination "Fh2411 won by resignation"]

1. d4 {[%clk 0:03:00.9]} 1... d5 {[%clk 0:02:59.4]} 2. Nf3 {[%clk 0:03:01.8]}
2... Nf6 {[%clk 0:02:58.1]} 3. Bf4 {[%clk 0:03:01]} 3... c5 {[%clk 0:02:57]} 4.
e3 {[%clk 0:03:01.1]} 4... Nc6 {[%clk 0:02:56.9]} 5. Nbd2 {[%clk 0:03:01.1]}
5... Qb6 {[%clk 0:02:52.4]} 6. dxc5 {[%clk 0:03:00.9]} 6... Qxc5 {[%clk
0:02:52.1]} 7. a3 {[%clk 0:03:00.6]} 7... a6 {[%clk 0:02:35]} 8. c4 {[%clk
0:02:59.2]} 8... e6 {[%clk 0:02:10.3]} 9. Be2 {[%clk 0:02:34.9]} 9... Be7 {[%clk
0:02:09.2]} 10. O-O {[%clk 0:02:33.2]} 10... O-O {[%clk 0:02:07.1]} 11. Rc1
{[%clk 0:02:33.7]} 11... Qa7 {[%clk 0:02:05.3]} 12. b4 {[%clk 0:02:31.4]} 12...
Rd8 {[%clk 0:01:51.3]} 13. Qc2 {[%clk 0:02:18.3]} 13... Bd6 {[%clk 0:01:22.9]}
14. Bg5 {[%clk 0:02:15]} 14... Be7 {[%clk 0:01:14.6]} 15. Rfd1 {[%clk
0:02:14.2]} 15... Bd7 {[%clk 0:01:08.9]} 16. Bxf6 {[%clk 0:02:10.7]} 16... Bxf6
{[%clk 0:01:07.9]} 17. cxd5 {[%clk 0:02:11.3]} 17... exd5 {[%clk 0:01:07.9]} 18.
Nb3 {[%clk 0:02:11.9]} 18... Be6 {[%clk 0:00:53]} 19. Nfd4 {[%clk 0:02:05.1]}
19... Ne5 {[%clk 0:00:41.4]} 20. Qc5 {[%clk 0:01:45.1]} 20... Nc4 {[%clk
0:00:37.1]} 21. Qxa7 {[%clk 0:01:40.5]} 21... Rxa7 {[%clk 0:00:36.8]} 22. Nxe6
{[%clk 0:01:40.1]} 22... fxe6 {[%clk 0:00:32.4]} 23. Bxc4 {[%clk 0:01:40]} 23...
dxc4 {[%clk 0:00:32.3]} 24. Rxd8+ {[%clk 0:01:40.9]} 24... Bxd8 {[%clk
0:00:31.9]} 25. Rxc4 {[%clk 0:01:41.5]} 25... b5 {[%clk 0:00:24.3]} 26. Rc8
{[%clk 0:01:35.2]} 26... Kf7 {[%clk 0:00:24]} 27. Rxd8 {[%clk 0:01:34]} 27...
Rc7 {[%clk 0:00:18]} 28. Nc5 {[%clk 0:01:34.1]} 28... a5 {[%clk 0:00:17.7]} 29.
Rd7+ {[%clk 0:01:32]} 29... Rxd7 {[%clk 0:00:17.6]} 30. Nxd7 {[%clk 0:01:32.9]}
1-0

[Event "*** SCC Grand Prix: Titled Tuesday Blitz"]
[Site "Chess.com"]
[Date "2020.06.09"]
[Round "5"]
[White "Gennady_Kozlov"]
[Black "eightbyeightchess"]
[Result "1-0"]
[WhiteElo "2558"]
[BlackElo "2382"]
[TimeControl "180+1"]
[EndTime "9:54:56 PDT"]
[Termination "Gennady_Kozlov won by resignation"]

1. b3 {[%clk 0:02:55.7]} 1... d5 {[%clk 0:02:59.5]} 2. Bb2 {[%clk 0:02:56.1]}
2... Nf6 {[%clk 0:02:59.9]} 3. e3 {[%clk 0:02:55.7]} 3... a6 {[%clk 0:02:58.5]}
4. f4 {[%clk 0:02:55.6]} 4... Nc6 {[%clk 0:02:55.6]} 5. Nf3 {[%clk 0:02:55.5]}
5... Bg4 {[%clk 0:02:55.5]} 6. Be2 {[%clk 0:02:55.2]} 6... e6 {[%clk 0:02:54]}
7. O-O {[%clk 0:02:54.5]} 7... Bd6 {[%clk 0:02:52.6]} 8. Ne5 {[%clk 0:02:53.5]}
8... Bf5 {[%clk 0:02:42.6]} 9. Nxc6 {[%clk 0:02:51.2]} 9... bxc6 {[%clk
0:02:41]} 10. d3 {[%clk 0:02:51.6]} 10... O-O {[%clk 0:02:32.9]} 11. Nd2 {[%clk
0:02:50.3]} 11... Bc5 {[%clk 0:02:29.7]} 12. d4 {[%clk 0:02:49.2]} 12... Be7
{[%clk 0:02:26.2]} 13. g4 {[%clk 0:02:47.4]} 13... Be4 {[%clk 0:02:22.3]} 14. g5
{[%clk 0:02:43.8]} 14... Nd7 {[%clk 0:02:20.1]} 15. Nxe4 {[%clk 0:02:42.6]}
15... dxe4 {[%clk 0:02:21]} 16. c4 {[%clk 0:02:41]} 16... f6 {[%clk 0:02:15.4]}
17. gxf6 {[%clk 0:02:39.9]} 17... Rxf6 {[%clk 0:02:03.5]} 18. Kh1 {[%clk
0:02:37.8]} 18... Rh6 {[%clk 0:01:57.3]} 19. Rg1 {[%clk 0:02:36.4]} 19... Qf8
{[%clk 0:01:38.4]} 20. Rg2 {[%clk 0:02:21.2]} 20... Qf5 {[%clk 0:01:31.8]} 21.
Qg1 {[%clk 0:02:16.6]} 21... Bf8 {[%clk 0:01:11.7]} 22. d5 {[%clk 0:02:12.9]}
22... Nf6 {[%clk 0:00:53.3]} 23. dxc6 {[%clk 0:01:54.8]} 23... Rd8 {[%clk
0:00:47.7]} 24. Bg4 {[%clk 0:01:50.4]} 24... Nxg4 {[%clk 0:00:43.9]} 25. Rxg4
{[%clk 0:01:49.3]} 25... g6 {[%clk 0:00:14.1]} 26. Bd4 {[%clk 0:01:41.6]} 26...
Qh5 {[%clk 0:00:13.1]} 27. Qg2 {[%clk 0:01:37.6]} 27... Bc5 {[%clk 0:00:11.7]}
28. Rg5 {[%clk 0:01:35.9]} 1-0

[Event "*** SCC Grand Prix: Titled Tuesday Blitz"]
[Site "Chess.com"]
[Date "2020.06.09"]
[Round "5"]
[White "lucachess49"]
[Black "PrinceMurad09"]
[Result "0-1"]
[WhiteElo "2300"]
[BlackElo "2518"]
[TimeControl "180+1"]
[EndTime "9:54:58 PDT"]
[Termination "PrinceMurad09 won by resignation"]

1. d4 {[%clk 0:03:00.6]} 1... Nf6 {[%clk 0:02:59.9]} 2. c4 {[%clk 0:02:59]} 2...
c5 {[%clk 0:02:59.2]} 3. d5 {[%clk 0:02:58.9]} 3... b5 {[%clk 0:02:59.5]} 4.
cxb5 {[%clk 0:02:58.5]} 4... a6 {[%clk 0:03:00]} 5. bxa6 {[%clk 0:02:58.7]} 5...
g6 {[%clk 0:03:00.6]} 6. Nc3 {[%clk 0:02:58.6]} 6... Bg7 {[%clk 0:03:01.2]} 7.
e4 {[%clk 0:02:58.8]} 7... Qa5 {[%clk 0:03:01.9]} 8. Bd2 {[%clk 0:02:22.5]} 8...
Bxa6 {[%clk 0:02:59.8]} 9. Bxa6 {[%clk 0:02:21.6]} 9... Qxa6 {[%clk 0:03:00.2]}
10. Nf3 {[%clk 0:02:21.5]} 10... O-O {[%clk 0:02:55.4]} 11. Qe2 {[%clk
0:02:19.9]} 11... d6 {[%clk 0:02:52.9]} 12. Qxa6 {[%clk 0:02:18]} 12... Nxa6
{[%clk 0:02:52.8]} 13. O-O {[%clk 0:02:14.8]} 13... Rfb8 {[%clk 0:02:52.7]} 14.
Rab1 {[%clk 0:01:31.8]} 14... Nb4 {[%clk 0:02:52.9]} 15. e5 {[%clk 0:01:11.2]}
15... Nfxd5 {[%clk 0:02:49.3]} 16. Nxd5 {[%clk 0:01:09.1]} 16... Nxd5 {[%clk
0:02:49.3]} 17. a3 {[%clk 0:00:59.2]} 17... dxe5 {[%clk 0:02:45.3]} 18. Rfe1
{[%clk 0:00:55]} 18... e4 {[%clk 0:02:43.2]} 19. Rxe4 {[%clk 0:00:54.1]} 19...
Rxb2 {[%clk 0:02:28.8]} 20. Rxb2 {[%clk 0:00:44.3]} 20... Bxb2 {[%clk
0:02:29.7]} 21. a4 {[%clk 0:00:44.8]} 21... e6 {[%clk 0:02:27.9]} 22. Rc4 {[%clk
0:00:42.9]} 22... Ba3 {[%clk 0:02:27.2]} 23. g3 {[%clk 0:00:40.9]} 23... Bb4
{[%clk 0:02:27.3]} 24. Bh6 {[%clk 0:00:24.3]} 24... Rxa4 {[%clk 0:02:21.1]} 25.
Ne5 {[%clk 0:00:24.5]} 25... Ra7 {[%clk 0:01:56]} 26. Kg2 {[%clk 0:00:18.4]}
26... f6 {[%clk 0:01:55.9]} 27. Nd3 {[%clk 0:00:16.2]} 27... Rc7 {[%clk
0:01:49.3]} 28. h4 {[%clk 0:00:14.7]} 28... Kf7 {[%clk 0:01:49.1]} 29. Bc1
{[%clk 0:00:12.9]} 29... e5 {[%clk 0:01:41.3]} 30. Bb2 {[%clk 0:00:12.4]} 30...
Ke6 {[%clk 0:01:40.2]} 31. f4 {[%clk 0:00:12.3]} 31... Ne3+ {[%clk 0:01:35.7]}
0-1

[Event "*** SCC Grand Prix: Titled Tuesday Blitz"]
[Site "Chess.com"]
[Date "2020.06.09"]
[Round "5"]
[White "bratkoo"]
[Black "anastasiyakarlovych"]
[Result "1-0"]
[WhiteElo "2335"]
[BlackElo "1970"]
[TimeControl "180+1"]
[EndTime "9:55:00 PDT"]
[Termination "bratkoo won by resignation"]

1. e4 {[%clk 0:03:00.9]} 1... e5 {[%clk 0:02:55]} 2. Nf3 {[%clk 0:02:58.2]} 2...
Nc6 {[%clk 0:02:50.9]} 3. d4 {[%clk 0:02:54.7]} 3... exd4 {[%clk 0:02:49.8]} 4.
Nxd4 {[%clk 0:02:55.6]} 4... Bc5 {[%clk 0:02:46.9]} 5. Nb3 {[%clk 0:02:55.7]}
5... Bb6 {[%clk 0:02:46.2]} 6. Nc3 {[%clk 0:02:56.2]} 6... Nf6 {[%clk
0:02:44.3]} 7. Qe2 {[%clk 0:02:56.7]} 7... d6 {[%clk 0:02:38.8]} 8. Be3 {[%clk
0:02:56.1]} 8... O-O {[%clk 0:02:37.3]} 9. O-O-O {[%clk 0:02:55.5]} 9... Re8
{[%clk 0:02:33.8]} 10. f3 {[%clk 0:02:55.3]} 10... Be6 {[%clk 0:02:22.4]} 11. g4
{[%clk 0:02:51]} 11... Bxe3+ {[%clk 0:02:17.9]} 12. Qxe3 {[%clk 0:02:50.2]}
12... a5 {[%clk 0:02:15.9]} 13. g5 {[%clk 0:02:46.5]} 13... Nd7 {[%clk
0:02:13.4]} 14. f4 {[%clk 0:02:44.8]} 14... Bxb3 {[%clk 0:01:57.4]} 15. axb3
{[%clk 0:02:39.4]} 15... Nc5 {[%clk 0:01:55.7]} 16. Bc4 {[%clk 0:02:29.2]} 16...
a4 {[%clk 0:01:51.9]} 17. bxa4 {[%clk 0:02:26.1]} 17... Nxa4 {[%clk 0:01:50.9]}
18. Nxa4 {[%clk 0:02:23.1]} 18... Rxa4 {[%clk 0:01:51.8]} 19. Bxf7+ {[%clk
0:02:22.9]} 19... Kh8 {[%clk 0:01:29.4]} 20. Bxe8 {[%clk 0:02:22.5]} 20... Qxe8
{[%clk 0:01:25.8]} 21. Rhe1 {[%clk 0:02:20.9]} 21... Qa8 {[%clk 0:01:11.4]} 22.
e5 {[%clk 0:02:13.2]} 22... Qa5 {[%clk 0:01:07.5]} 23. c3 {[%clk 0:02:10.3]}
23... Ra1+ {[%clk 0:00:38.1]} 24. Kd2 {[%clk 0:02:09.4]} 24... Ra2 {[%clk
0:00:37.5]} 25. Rb1 {[%clk 0:01:44.8]} 25... dxe5 {[%clk 0:00:35.4]} 26. fxe5
{[%clk 0:01:44.4]} 26... Qd5+ {[%clk 0:00:31.3]} 27. Kc1 {[%clk 0:01:43.8]}
27... Ra8 {[%clk 0:00:22.9]} 28. e6 {[%clk 0:01:37.3]} 28... Re8 {[%clk
0:00:22.1]} 29. Ra1 {[%clk 0:01:35.6]} 29... Ne5 {[%clk 0:00:20.7]} 30. Qxe5
{[%clk 0:01:35]} 30... Qg2 {[%clk 0:00:17.6]} 31. e7 {[%clk 0:01:31.7]} 1-0

[Event "*** SCC Grand Prix: Titled Tuesday Blitz"]
[Site "Chess.com"]
[Date "2020.06.09"]
[Round "5"]
[White "Glek_Igor"]
[Black "jacky72"]
[Result "0-1"]
[WhiteElo "2445"]
[BlackElo "2680"]
[TimeControl "180+1"]
[EndTime "9:55:03 PDT"]
[Termination "jacky72 won on time"]

1. e4 {[%clk 0:03:00.9]} 1... g6 {[%clk 0:02:58]} 2. d4 {[%clk 0:02:59.1]} 2...
Bg7 {[%clk 0:02:58.9]} 3. Nc3 {[%clk 0:02:59.1]} 3... d6 {[%clk 0:02:58.3]} 4.
f4 {[%clk 0:02:59.1]} 4... Nd7 {[%clk 0:02:55.1]} 5. Nf3 {[%clk 0:02:57.8]} 5...
e6 {[%clk 0:02:54.5]} 6. Bd3 {[%clk 0:02:48.4]} 6... Ne7 {[%clk 0:02:55.4]} 7.
O-O {[%clk 0:02:46.4]} 7... b6 {[%clk 0:02:54.8]} 8. f5 {[%clk 0:02:44.4]} 8...
exf5 {[%clk 0:02:54.6]} 9. exf5 {[%clk 0:02:43.5]} 9... O-O {[%clk 0:02:51.9]}
10. fxg6 {[%clk 0:02:35.1]} 10... hxg6 {[%clk 0:02:46.4]} 11. Qe1 {[%clk
0:02:26.5]} 11... Bb7 {[%clk 0:02:44.6]} 12. Qh4 {[%clk 0:02:24.5]} 12... Nf5
{[%clk 0:02:34.8]} 13. Qh3 {[%clk 0:01:36.3]} 13... Bxf3 {[%clk 0:02:28.7]} 14.
Bxf5 {[%clk 0:01:31]} 14... Bxd4+ {[%clk 0:02:26.8]} 15. Kh1 {[%clk 0:01:27.7]}
15... Bc6 {[%clk 0:02:27.3]} 16. Ne4 {[%clk 0:00:28.5]} 16... Bxe4 {[%clk
0:02:01.7]} 17. Bxe4 {[%clk 0:00:24.7]} 17... Rb8 {[%clk 0:01:54.6]} 18. Bh6
{[%clk 0:00:21.5]} 18... Bg7 {[%clk 0:01:52.8]} 19. Bd5 {[%clk 0:00:18.5]} 19...
Ne5 {[%clk 0:01:47.4]} 20. Rae1 {[%clk 0:00:15.6]} 20... c6 {[%clk 0:01:47.2]}
21. Bb3 {[%clk 0:00:11]} 21... Qc8 {[%clk 0:01:41.1]} 22. Qh4 {[%clk 0:00:09.6]}
22... Qg4 {[%clk 0:01:41.6]} 23. Qxg4 {[%clk 0:00:06]} 23... Nxg4 {[%clk
0:01:42.5]} 24. Bxg7 {[%clk 0:00:05.7]} 24... Kxg7 {[%clk 0:01:43.4]} 25. Re7
{[%clk 0:00:05.5]} 25... Ne5 {[%clk 0:01:41]} 26. Rxa7 {[%clk 0:00:04.4]} 26...
d5 {[%clk 0:01:41.2]} 27. h3 {[%clk 0:00:03.4]} 27... Rbd8 {[%clk 0:01:37.8]}
28. a4 {[%clk 0:00:01.6]} 28... c5 {[%clk 0:01:37.6]} 29. Rb7 {[%clk 0:00:01.5]}
29... c4 {[%clk 0:01:37.9]} 0-1

[Event "*** SCC Grand Prix: Titled Tuesday Blitz"]
[Site "Chess.com"]
[Date "2020.06.09"]
[Round "5"]
[White "PowerThinking2650"]
[Black "Quiet_Desperation"]
[Result "1-0"]
[WhiteElo "2326"]
[BlackElo "1903"]
[TimeControl "180+1"]
[EndTime "9:55:03 PDT"]
[Termination "PowerThinking2650 won by resignation"]

1. e4 {[%clk 0:03:00.9]} 1... e6 {[%clk 0:02:59.6]} 2. d4 {[%clk 0:03:00.1]}
2... d5 {[%clk 0:02:58.4]} 3. Nd2 {[%clk 0:03:00.5]} 3... Nf6 {[%clk 0:02:58.3]}
4. e5 {[%clk 0:02:59.5]} 4... Nfd7 {[%clk 0:02:58.4]} 5. Bd3 {[%clk 0:03:00.1]}
5... c5 {[%clk 0:02:58.3]} 6. c3 {[%clk 0:03:00.6]} 6... Nc6 {[%clk 0:02:58.5]}
7. Ne2 {[%clk 0:03:01.1]} 7... cxd4 {[%clk 0:02:58.5]} 8. cxd4 {[%clk 0:03:02]}
8... f6 {[%clk 0:02:58.9]} 9. exf6 {[%clk 0:03:02.2]} 9... Nxf6 {[%clk
0:02:59.2]} 10. Nf3 {[%clk 0:03:01.7]} 10... Bd6 {[%clk 0:02:59.5]} 11. O-O
{[%clk 0:03:01.6]} 11... Qc7 {[%clk 0:02:59.8]} 12. Nc3 {[%clk 0:02:58.5]} 12...
a6 {[%clk 0:02:58.8]} 13. Bg5 {[%clk 0:02:57.9]} 13... O-O {[%clk 0:02:58.6]}
14. Bh4 {[%clk 0:02:55.6]} 14... Nh5 {[%clk 0:02:18.1]} 15. Bg3 {[%clk
0:02:51.9]} 15... Nxg3 {[%clk 0:02:12.9]} 16. hxg3 {[%clk 0:02:49.4]} 16... g6
{[%clk 0:02:13.5]} 17. Re1 {[%clk 0:02:45.8]} 17... Qg7 {[%clk 0:02:01.1]} 18.
Ne2 {[%clk 0:02:29]} 18... Bd7 {[%clk 0:01:33.8]} 19. Rc1 {[%clk 0:02:26.5]}
19... Rac8 {[%clk 0:01:33.2]} 20. a3 {[%clk 0:02:25.3]} 20... Na5 {[%clk
0:01:30.3]} 21. b4 {[%clk 0:02:08.9]} 21... Nc4 {[%clk 0:01:26.9]} 22. Bxc4
{[%clk 0:02:07.6]} 22... dxc4 {[%clk 0:01:26.5]} 23. Nc3 {[%clk 0:02:03.2]}
23... b5 {[%clk 0:01:00.1]} 24. Ne5 {[%clk 0:02:02.1]} 24... Be8 {[%clk
0:00:55.1]} 25. Qe2 {[%clk 0:01:54]} 25... Rd8 {[%clk 0:00:42.4]} 26. Rcd1
{[%clk 0:01:46]} 26... Kh8 {[%clk 0:00:36]} 27. f4 {[%clk 0:01:31.3]} 27... Bxe5
{[%clk 0:00:32.5]} 28. Qxe5 {[%clk 0:01:18.3]} 28... Bc6 {[%clk 0:00:24.7]} 29.
Qxg7+ {[%clk 0:01:14.9]} 29... Kxg7 {[%clk 0:00:24.2]} 30. Rxe6 {[%clk
0:01:15.4]} 30... Bd5 {[%clk 0:00:23.4]} 1-0